Cogmind - Beta 14 @@@ ROGUE MODE // 2024.08.26 @ 20:24:51 Player: AC Result: Destroyed by Y-45 Defender with Heavy Assault Rifle Performance ------------- Evolutions (1) 500 Regions Visited (2) 400 Robots Destroyed (22) 110 Value Destroyed (229) 229 Prototype IDs (0) 0 Alien Tech Used (0) 0 Bonus (0) 0 TOTAL SCORE: 1239 Bonus ------- None Cogmind --------- Core Integrity 0/400 Matter 223/300 Energy 250/250 System Corruption 0% Temperature Cool (9) Movement Core (750) Ox14 Location -9/Materials Parts ------- > --- POWER (1) -------- (None) > --- PROPULSION (4) --- (None) > --- UTILITY (2) ------ High-capacity Storage Unit Medium Battery > --- WEAPON (2) ------- Light Assault Rifle > --- INVENTORY (20) --- Ion Engine Light Ion Engine Light Ion Engine Wheel Medium Storage Unit High-capacity Storage Unit Structural Scanner Sensor Array Light Armor Plating Light Armor Plating Light Armor Plating Hardened Light Armor Plating Mining Laser Peak State ------------ > --- POWER ------------ Ion Engine > --- PROPULSION ------- Improved Aluminum Leg Improved Aluminum Leg Flight Unit > --- UTILITY ---------- High-capacity Storage Unit Medium Battery > --- WEAPON ----------- Assault Rifle Grenade Launcher > --- INVENTORY -------- Light Ion Engine Light Ion Engine Light Ion Engine Wheel Flight Unit Flight Unit Medium Storage Unit High-capacity Storage Unit Structural Scanner Sensor Array Light Armor Plating Light Armor Plating Light Armor Plating Light Assault Rifle Light Assault Rifle Rocket Launcher Mining Laser [Rating: 11] Favorites ----------- Power Ion Engine Engine Ion Engine Propulsion Flight Unit Leg Improved Aluminum Leg Wheel Wheel Flight Unit Flight Unit Utility Medium Battery Storage Medium Battery Weapon Assault Rifle Energy Gun Beam Rifle Ballistic Gun Assault Rifle Launcher Grenade Launcher Build | -11 -10 -9 ------- Run | Yrd Mat Mat Slots Evolved 2 | . . 2 Power . | . . . Propulsion 2 | . . 2 Utility . | . . . Weapon . | . . . Parts Attached 28 | 7 10 11 Power 5 | 2 2 1 Engine 5 | 2 2 1 Core . | . . . Reactor . | . . . Propulsion 11 | 2 4 5 Treads . | . . . Leg 4 | 2 2 . Wheel 2 | . 2 . Hover . | . . . Flight 5 | . . 5 Utility 2 | . 2 . Device . | . . . Storage 2 | . 2 . Processor . | . . . Hackware . | . . . Protection . | . . . Artifact . | . . . Weapon 10 | 3 2 5 Energy Gun 3 | 1 . 2 Energy Cannon . | . . . Ballistic Gun 5 | 2 1 2 Ballistic Cannon . | . . . Launcher 2 | . 1 1 Special Weapon . | . . . Impact Weapon . | . . . Slashing Weapon . | . . . Piercing Weapon . | . . . Special Melee Weapon . | . . . Unidentified Prototypes . | . . . Parts Lost 11 | . . 11 Power 1 | . . 1 Propulsion 4 | . . 4 Utility . | . . . Weapon 6 | . . 6 Highest Loss Streak 7 | . . 7 To Critical Strikes . | . . . Average Slot Usage (%) 75 | . 83 70 Engine 9 | . 14 6 Leg 11 | . 20 4 Wheel 2 | . 6 . Flight 9 | . . 16 Storage 18 | . 13 22 Energy Gun 2 | . . 4 Ballistic Gun 11 | . 14 10 Launcher 9 | . 12 6 Peak Build Rating 11 | 5 10 11 Average Rating 7 | 3 7 8 On Entrance 5 | . 5 10 Naked Turns . | . . . Heaviest Build 52 | 8 52 52 Greatest Support 26 | 20 26 26 Greatest Overweight (x) 15 | . 3 15 Average Overweight (x) 1 | . . 3 Largest Inventory Capacity 20 | 5 20 20 Average Capacity 13 | 5 10 20 Most Carried 20 | 5 18 20 Average Carried 11 | 3 7 17 Final Capacity 20 | 5 20 20 Final Carried 18 | 5 18 13 Class Distribution -------------------- 82% | Mutant 17% | Scavenger-Mutant Dominant Class ---------------- Mutant | -10/Materials Mutant | -9/Materials Resources | -11 -10 -9 ----------- Run | Yrd Mat Mat Matter Collected 519 | 277 116 126 Remotely . | . . . Salvage Created 236 | 46 21 169 Parts 43 | 4 1 38 Haulers Intercepted . | . . . Recyclers Shooed 2 | . 1 1 Parts Field Recycled . | . . . Retrieved Matter . | . . . Parts Self-Destructed . | . . . Prevented . | . . . Kills | -11 -10 -9 ------- Run | Yrd Mat Mat Combat Hostiles Destroyed 16 | 1 . 15 Guns 8 | 1 . 7 AOE 8 | . . 8 Classes Destroyed 6 | 2 1 3 Worker 2 | . . 2 Builder 2 | . . 2 Tunneler 1 | 1 . . Watcher 1 | . 1 . Swarmer 15 | . . 15 Grunt 1 | 1 . . Best Kill Streak 6 | 1 1 6 Combat Bots Only 5 | 1 . 5 Max Kills in Single Turn 2 | 1 1 2 Gunslinging . | . . . Exploded 2 | . . 2 Melee . | . . . Uniques/NPCs Destroyed . | . . . Combat | -11 -10 -9 -------- Run | Yrd Mat Mat Hostile Shots Fired 214 | 29 . 185 Missed 64 | 11 . 53 Damage Taken 1528 | 193 39 1296 Core 417 | 12 3 402 Absorbed by Shields . | . . . Regen/Repaired (Parts) 76 | . 76 . Core Remaining (%) 94 | 95 94 . Volleys Fired 48 | 14 1 33 Largest 2 | 2 2 2 Hottest 76 | 60 50 76 Shots Fired 87 | 28 2 57 Gun 76 | 28 1 47 Cannon . | . . . Launcher 11 | . 1 10 Special . | . . . Kinetic 45 | 14 1 30 Thermal 31 | 14 . 17 Explosive 11 | . 1 10 Electromagnetic . | . . . Robot Hit Streak 6 | 5 1 6 Robot Miss Streak 5 | 5 1 3 Penetration Max . | . . . Secondary Targets 2 | . . 2 Max Gunslinging Chain 1 | . . 1 Shots Hit Robots 44 | 15 1 28 Core Hits 33 | 4 2 27 Critical Kills . | . . . Critical Parts Destroyed . | . . . Critical Strikes . | . . . Melee Attacks . | . . . Impact . | . . . Slashing . | . . . Piercing . | . . . Sneak Attacks . | . . . Combat Hostiles . | . . . Follow-up Attacks . | . . . Damage Inflicted 1233 | 160 28 1045 Guns 477 | 160 . 317 Cannons . | . . . Explosions 749 | . 21 728 Melee . | . . . Ramming 7 | . 7 . Kinetic 247 | 72 . 175 Thermal 230 | 88 . 142 Explosive 749 | . 21 728 Electromagnetic . | . . . Impact . | . . . Slashing . | . . . Piercing . | . . . Highest Corruption . | . . . Average Corruption . | . . . Corruption Purged . | . . . Corruption Blocked . | . . . Overload Shots . | . . . Overflow Damage 19 | . . 19 Projectiles . | . . . Explosions 19 | . . 19 Melee . | . . . Knockbacks 1 | . 1 . Impact 1 | . 1 . Kinetic . | . . . Secondary . | . . . Self-Inflicted Damage 220 | . 39 181 Shots 7 | . 1 6 Rammed 2 | . 1 1 Targets Rammed 2 | . 1 1 Kicked . | . . . Crushed . | . . . Highest Temperature 88 | 88 . 40 Average Temperature 25 | 32 . 16 Received Heat Transfer 162 | 108 . 54 Siege Activations . | . . . Robots Corrupted . | . . . Combat Hostiles . | . . . Parts Fried . | . . . Impact Corruptions . | . . . Robots Melted . | . . . Combat Hostiles . | . . . Parts Melted 1 | . . 1 Heat Transferred 570 | 200 . 370 Parts Sabotaged . | . . . Parts Stolen . | . . . Parts Stripped . | . . . Power Chain Reactions . | . . . Alert | -11 -10 -9 ------- Run | Yrd Mat Mat Peak Influence 277 | 25 40 277 Initial 16 | . 16 16 Average 81 | 5 34 149 Maximum Alert Level 1 | . . 1 Low Security (%) 82 | 100 100 62 Level 1 17 | . . 37 Level 2 . | . . . Level 3 . | . . . Level 4 . | . . . Level 5 . | . . . High Security . | . . . Max Security . | . . . Squads Dispatched 1 | . 1 . Investigation 1 | . 1 . Extermination . | . . . Reinforcement . | . . . Assault . | . . . Garrison . | . . . Intercept . | . . . Searches Triggered . | . . . Construction Impeded . | . . . Haulers Reinforced . | . . . Active Scanning Responses . | . . . Cargo Convoy Interrupts . | . . . Stealth | -11 -10 -9 --------- Run | Yrd Mat Mat Distress Signals 2 | . 1 1 Communications Jammed . | . . . Distress Signals . | . . . Times Spotted 19 | 1 . 18 Peak Tracking Total 6 | 1 . 6 Tactical Retreats . | . . . Traps | -11 -10 -9 ------- Run | Yrd Mat Mat Traps Triggered . | . . . Indirectly . | . . . Trap Hack Attempts . | . . . Triggered . | . . . Disarmed . | . . . Reprogrammed . | . . . Reused . | . . . Traps Extracted . | . . . Installed . | . . . Triggered . | . . . Machines | -11 -10 -9 ---------- Run | Yrd Mat Mat Machines Disabled 2 | . . 2 Max in Single Turn 1 | . . 1 Machines Repaired . | . . . Machines Dismantled . | . . . Machines Sabotaged . | . . . Overloaded Fab Kills . | . . . Hacking | -11 -10 -9 --------- Run | Yrd Mat Mat Machines Accessed 2 | . 2 . Terminals 1 | . 1 . Fabricators . | . . . Repair Stations 1 | . 1 . Recycling Units . | . . . Scanalyzers . | . . . Garrison Access . | . . . Total Hacks 7 | . 7 . Successful 4 | . 4 . Failed 3 | . 3 . Catastrophic 2 | . 2 . Database Lockouts . | . . . Manual . | . . . Terminals 3 | . 3 . Fabricators . | . . . Repair Stations 4 | . 4 . Recycling Units . | . . . Scanalyzers . | . . . Garrison Access . | . . . Terminal Hacks 2 | . 2 . Dispatch Records 1 | . 1 . Hauler Manifests 1 | . 1 . Fabricator Hacks . | . . . Repair Station Hacks 2 | . 2 . Scan Component 1 | . 1 . Repair 1 | . 1 . Recycling Unit Hacks . | . . . Scanalyzer . | . . . Garrison Access Hacks . | . . . Unauthorized Hacks . | . . . Terminals . | . . . Fabricators . | . . . Repair Stations . | . . . Recycling Units . | . . . Scanalyzers . | . . . Garrison Access . | . . . Data Cores Recovered . | . . . Used . | . . . Hacking Detections 1 | . 1 . Full Trace Events 1 | . 1 . Feedback Events . | . . . Feedback Blocked . | . . . Robot Schematics Acquired . | . . . Robots Built . | . . . Authchips . | . . . Time . | . . . Total Robot Build Rating . | . . . Part Schematics Acquired . | . . . Parts Built . | . . . Authchips . | . . . Time . | . . . Total Part Build Rating . | . . . Parts Repaired 1 | . 1 . Time 26 | . 26 . Parts Recycled . | . . . Recycled Matter . | . . . Retrieved Matter . | . . . Retrieved Components . | . . . Parts Scanalyzed . | . . . Part Schematics Acquired . | . . . Parts Damaged . | . . . Bothacking | -11 -10 -9 ------------ Run | Yrd Mat Mat Used RIF Installer . | . . . Robots Hacked . | . . . Non-combat . | . . . Combat . | . . . Robot Hacks Applied . | . . . Relay Couplers Released . | . . . Fabnet Peak Effective % . | . . . Robots Rewired . | . . . Allies Hacked . | . . . Hacks Repelled . | . . . Allies | -11 -10 -9 -------- Run | Yrd Mat Mat Total Allies . | . . . Largest Group . | . . . Highest-Rated Group . | . . . Highest-Rated Ally . | . . . Total Orders . | . . . Ally Attacks . | . . . Total Damage . | . . . Kills . | . . . Allies Corrupted . | . . . Allies Melted . | . . . Intel | -11 -10 -9 ------- Run | Yrd Mat Mat Robot Analysis Total . | . . . Derelict Logs Recovered . | . . . Drone Launches . | . . . Drone Recoveries . | . . . Exploration | -11 -10 -9 ------------- Run | Yrd Mat Mat Turns Passed 934 | 196 309 429 Spaces Moved 449 | 127 219 103 Core 46 | 32 1 13 Treads . | . . . Legs 277 | 95 146 36 Wheels 72 | . 72 . Hover . | . . . Flight 54 | . . 54 Fastest Speed 50 | 50 80 190 Average Speed 161 | 102 125 310 Slowest Speed 800 | 120 200 800 Overloaded Moves . | . . . Propulsion Burnouts . | . . . Robots Hopped . | . . . Cave-ins Triggered . | . . . Exploration Rate (%) 18 | 6 31 19 Regions Visited 2 Branch Regions . Pre-discovered Areas . | . . . Known Exits Taken . | . . . Unknown Exits Taken 2 | 1 1 . Scrap Searched . | . . . Spaces Dug . | . . . Terrain Destroyed 66 | . 7 59 Melee . | . . . Projectile . | . . . AOE 66 | . 7 59 Terrain Rammed . | . . . Walls Destroyed . | . . . Machines Disabled . | . . . Actions | -11 -10 -9 --------- Run | Yrd Mat Mat Total 575 | 167 253 155 Wait 10 | 10 . . Move 447 | 126 218 103 Hop . | . . . Pick Up 29 | 10 16 3 Fast Attach 5 | . 4 1 Attach 19 | 5 4 10 Detach 5 | . 3 2 Swap 4 | 2 2 . Drop 6 | . 4 2 Fire 48 | 14 1 33 Melee . | . . . Ram 2 | . 1 1 Kick . | . . . Crush . | . . . Escape Stasis . | . . . Rewire . | . . . Trap . | . . . Miscellaneous . | . . . Route ------- -11/Scrapyard -10/Materials (discovered 2 exits: [*Mat] / [*Min]) -9/Materials (discovered 1 exit: [*Min]) History --------- Turn | Location | Event 2 | -11/Scrapyard | Met Revision 17 93 | -11/Scrapyard | Discovered new exit (range 8) 197 | -11/Scrapyard | Entered Materials 237 | -10/Materials | Repaired Aluminum Leg 273 | -10/Materials | Discovered new exit (range 14) 275 | -10/Materials | Met 8R-AWN 314 | -10/Materials | Build established: Mutant 343 | -10/Materials | Discovered new exit (range 16) 506 | -10/Materials | Entered another Materials area 506 | -9/Materials | Evolved 2 slots: Propulsion x2 798 | -9/Materials | Lost 7 parts (1p4n2w) 865 | -9/Materials | Discovered new exit (range 9) 887 | -9/Materials | Core integrity fell below 50% 923 | -9/Materials | Core integrity fell below 20% 935 | -9/Materials | Destroyed by Y-45 Defender with Heavy Assault Rifle Last Messages --------------- K-01 Serf destroyed. Rocket Launcher destroyed. Destroyed Rocket Launcher. K-01 Serf collects debris. R-06 Scavenger collects Lgt. Ion Engine. R-06 Scavenger destroyed. R-06 Scavenger collects Lgt. Ion Engine. K-01 Serf collects debris. U-05 Engineer lays Concrete. K-01 Serf collects debris. U-05 Engineer builds a Wall. K-01 Serf collects debris. Critical hit (Burn: +37). K-01 Serf destroyed. K-01 Serf collects debris. The unstable cave ceiling collapses. K-01 Serf collects debris. R-06 Scavenger collects Lgt. Assault Rifle. K-01 Serf collects debris. [Achievement: First Step to Greatness] Map ----- +----------------------------------------------------+ | ?????????????????????????????????????????????????? | | ?????????????????????????????????????????????????? | | ?????????????????????????????????????????????????? | | ?????????????????????????????????????????????????? | | ?????????????????????????????????????????????????? | | ?????????????????????????????????????????????????? | | ?????????????????????????????????????????????????? | | ?????????????????????????????????????????????????? | | ?????????????????????????????????????????????????? | | ?????????????????????????????????????????????#???? | | ????????????????????????????????????????????? ???? | | ????????????????????????????????????????????? ???? | | ?????????????????????????????###########??### ###? | | ?????????????????????????????# #??# #? | | ?????????????????????????????# #??# #? | | ??????????????#??????????????# #??# +? | | ??????????????# ?????????????# #??# #? | | ??????????????# ??????##+##?# #??? ?? | | ?????????????## ###### #?# #???# #?? | | ?????????????# ?+ #???# #?? | | ???????????" # k Y #?# ????# ### | | ??????????? + *[==% #######+#######?# # | | ?????????????# [*[*k% ##### ####### # | | ?????????????# ^[ * = # | | ??????????????# k % + | | ??????????????# w @ % % # | | ??????????????# # ## ##+#####/## | | ??????????????# u# [ ######## ?# | | ??????????????# """ ?#* [ #?????# # | | ??????????????+ """??# ! #?????# !!### | | ??????????????# ""???# "##?????# !!#?? | | ??????????????# ??? # r< "#??????# """ #?? | | ????????????????????? # !"#??????# """ #?? | | ???????????????????? # r "#??????# """ #?? | | ???????????????????" # """#??????# ? +?? | | ???????????????????" # ####??????###??#######? | | ?????????????????? #?????????????????????? | | ??????????????????? ? r #?????????????????????? | | ?????????????????? ? ??????????????????????? | | ?????????????????????? ??????????????????????? | | ??????????????????????? ??????????????????????? | | ?????????????????????????????????????????????????? | | ?????????????????????????????????????????????????? | | ?????????????????????????????????????????????????? | | ?????????????????????????????????????????????????? | | ?????????????????????????????????????????????????? | | ?????????????????????????????????????????????????? | | ?????????????????????????????????????????????????? | | ?????????????????????????????????????????????????? | | ?????????????????????????????????????????????????? | +----------------------------------------------------+ Best States ------------- Heat Dissipation 28 Energy Generation 10 Energy Capacity 400 Matter Stores 300 Matter Capacity 300 Sight Range 16 Terrain Scan Density 10 Evasion (%) 55 Item Schematics ----------------- None Robot Schematics ------------------ None Fabricated ------------ Nothing Alien Tech Used ----------------- None Achievements -------------- First Step to Greatness Let's See Who's Tougher One Hack Too Far Part-time Mechanic Shopping List Storm Trooper Challenges ------------ None Game ------ Seed GravityPotentialArmor Manual? 0 Play Time 01:19:09 Cumulative 1.2 hours Start 2024.08.25 @ 06:25:11 End 2024.08.26 @ 20:24:51 Sessions 7 Manual Loads 0 Difficulty Rogue Special Mode None Game No. 1 Rogue 1 Adventurer 0 Explorer 0 Win Type - Total 0 Types 0/0/0/0/0/0/0/0/0 Lore% 0 Gallery% 1 Achievement% 2 Wizard Run 0 Options --------- Layout 0 ASCII 0 Keyboard 1 Movement Vi Keybinds 0 Fullscreen 1 Font 24/Terminus Map View 38x25 Zoom Use 83% Tactical HUD 0 Map Filters NONE Filters NONE Steam 1 RUN: f3d076b9-5a16-48a4-8ad1-47cf1e9d586b